Cogmind - Beta 14 *** ADVENTURER MODE // 2025.01.09 @ 20:52:17 Player: core_nxt Result: Destroyed by as-40210 with Assembled Blade Performance ------------- Evolutions (0) 0 Regions Visited (2) 400 Robots Destroyed (13) 65 Value Destroyed (309) 309 Prototype IDs (2) 40 Alien Tech Used (0) 0 Bonus (0) 0 TOTAL SCORE: 814 Bonus ------- None Cogmind --------- Core Integrity 0/250 Matter 255/300 Energy 78/100 System Corruption 5% Temperature Cool (42) Movement Rolling (140) Ox4 Location -10/Mines Parts ------- > --- POWER (1) -------- (None) > --- PROPULSION (2) --- Wheel > --- UTILITY (2) ------ High-capacity Storage Unit > --- WEAPON (2) ------- Small Laser > --- INVENTORY (20) --- Light Ion Engine High-capacity Matter Pod (2) Signal Interpreter Targeting Computer Targeting Computer Peak State ------------ > --- POWER ------------ Light Ion Engine > --- PROPULSION ------- Wheel Wheel > --- UTILITY ---------- Small Storage Unit High-capacity Storage Unit > --- WEAPON ----------- Assault Rifle Light Assault Rifle > --- INVENTORY -------- Ion Engine Aluminum Leg Aluminum Leg Small Laser [Rating: 7] Favorites ----------- Power Ion Engine Engine Ion Engine Propulsion Aluminum Leg Leg Aluminum Leg Wheel Wheel Utility High-capacity Storage Unit Device Sensor Array Storage High-capacity Storage Unit Processor Targeting Computer Weapon Assault Rifle Energy Gun EM Pulse Gun Ballistic Gun Assault Rifle Build | -11 -10 -10 ------- Run | Yrd Mat Min Slots Evolved . | . . . Power . | . . . Propulsion . | . . . Utility . | . . . Weapon . | . . . Parts Attached 18 | 7 7 4 Power 2 | 1 1 . Engine 2 | 1 1 . Core . | . . . Reactor . | . . . Propulsion 6 | 2 2 2 Treads . | . . . Leg 2 | . 2 . Wheel 4 | 2 . 2 Hover . | . . . Flight . | . . . Utility 4 | 1 2 1 Device 1 | . 1 . Storage 2 | 1 1 . Processor 1 | . . 1 Hackware . | . . . Protection . | . . . Artifact . | . . . Weapon 6 | 3 2 1 Energy Gun 2 | 1 . 1 Energy Cannon . | . . . Ballistic Gun 4 | 2 2 . Ballistic Cannon . | . . . Launcher . | . . . Special Weapon . | . . . Impact Weapon . | . . . Slashing Weapon . | . . . Piercing Weapon . | . . . Special Melee Weapon . | . . . Unidentified Prototypes . | . . . Parts Lost 8 | . 1 7 Power 1 | . . 1 Propulsion 2 | . . 2 Utility 2 | . . 2 Weapon 3 | . 1 2 Highest Loss Streak 7 | . 1 7 To Critical Strikes . | . . . Average Slot Usage (%) 95 | . 95 95 Engine 13 | . 14 13 Leg 18 | . 16 26 Wheel 9 | . 11 . Device 10 | . 10 12 Storage 14 | . 14 14 Energy Gun 2 | . 2 . Ballistic Gun 25 | . 25 26 Peak Build Rating 7 | 6 7 7 Average Rating 6 | 4 6 6 On Entrance 4 | . 6 7 Naked Turns . | . . . Heaviest Build 49 | 12 49 49 Greatest Support 20 | 20 20 20 Greatest Overweight (x) 2 | . 2 2 Average Overweight (x) 1 | . 1 2 Largest Inventory Capacity 20 | 8 20 20 Average Capacity 17 | 6 17 20 Most Carried 11 | 4 11 9 Average Carried 7 | 2 7 8 Final Capacity 20 | 8 20 20 Final Carried 9 | 4 9 5 Class Distribution -------------------- 100% | Mutant Dominant Class ---------------- Mutant | -10/Materials Mutant | -10/Mines Resources | -11 -10 -10 ----------- Run | Yrd Mat Min Matter Collected 499 | 234 221 44 Remotely . | . . . Salvage Created 556 | . 437 119 Parts 29 | . 23 6 Haulers Intercepted 2 | . 2 . Recyclers Shooed . | . . . Parts Field Recycled . | . . . Retrieved Matter . | . . . Parts Self-Destructed . | . . . Prevented . | . . . Kills | -11 -10 -10 ------- Run | Yrd Mat Min Combat Hostiles Destroyed 14 | . 6 8 Guns 14 | . 6 8 Classes Destroyed 5 | . 3 2 Hauler 2 | . 2 . Watcher 2 | . 2 . Swarmer 3 | . . 3 Grunt 6 | . 6 . Assembled 5 | . . 5 Best Kill Streak 5 | . 2 5 Combat Bots Only 5 | . 2 5 Max Kills in Single Turn 1 | . 1 1 Gunslinging . | . . . Exploded . | . . . Melee . | . . . Uniques/NPCs Destroyed . | . . . Combat | -11 -10 -10 -------- Run | Yrd Mat Min Hostile Shots Fired 116 | . 27 89 Missed 34 | . 6 28 Damage Taken 1010 | . 259 751 Core 253 | . 73 180 Absorbed by Shields . | . . . Ignored by Resistances 289 | . 72 217 Regen/Repaired (Parts) 107 | . 107 . Core Remaining (%) 100 | 100 . . Volleys Fired 60 | . 39 21 Largest 2 | . 2 2 Hottest 60 | . 60 60 Shots Fired 114 | . 75 39 Gun 114 | . 75 39 Cannon . | . . . Launcher . | . . . Special . | . . . Kinetic 96 | . 64 32 Thermal 7 | . . 7 Explosive . | . . . Electromagnetic 11 | . 11 . Robot Hit Streak 30 | . 30 11 Robot Miss Streak 3 | . 3 2 Penetration Max . | . . . Secondary Targets 4 | . . 4 Max Gunslinging Chain 1 | . . 1 Shots Hit Robots 91 | . 60 31 Core Hits 40 | . 23 17 Critical Kills . | . . . Critical Parts Destroyed . | . . . Critical Strikes . | . . . Melee Attacks . | . . . Impact . | . . . Slashing . | . . . Piercing . | . . . Sneak Attacks . | . . . Combat Hostiles . | . . . Follow-up Attacks . | . . . Damage Inflicted 1008 | . 690 318 Guns 1008 | . 690 318 Cannons . | . . . Explosions . | . . . Melee . | . . . Ramming . | . . . Kinetic 787 | . 550 237 Thermal 81 | . . 81 Explosive . | . . . Electromagnetic 140 | . 140 . Impact . | . . . Slashing . | . . . Piercing . | . . . Highest Corruption 5 | . . 5 Average Corruption 3 | . . 3 Corruption Purged . | . . . Corruption Blocked . | . . . Effects 1 | . . 1 Heat Flow Errors 1 | . . 1 Overload Shots . | . . . Overflow Damage . | . . . Projectiles . | . . . Explosions . | . . . Melee . | . . . Knockbacks . | . . . Impact . | . . . Kinetic . | . . . Secondary . | . . . Self-Inflicted Damage . | . . . Shots . | . . . Rammed . | . . . Targets Rammed . | . . . Kicked . | . . . Crushed . | . . . Highest Temperature 357 | . 120 357 Average Temperature 105 | . 57 175 Received Heat Transfer 392 | . 192 200 Effects 2 | . . 2 Energy Bleed 1 | . . 1 Damage (minor) 1 | . . 1 Siege Activations . | . . . Robots Corrupted . | . . . Combat Hostiles . | . . . Parts Fried . | . . . Impact Corruptions . | . . . Robots Melted . | . . . Combat Hostiles . | . . . Parts Melted . | . . . Heat Transferred 175 | . . 175 Parts Sabotaged . | . . . Parts Stolen . | . . . Parts Stripped . | . . . Power Chain Reactions . | . . . Alert | -11 -10 -10 ------- Run | Yrd Mat Min Peak Influence 128 | . 128 70 Initial . | . . . Average 38 | . 36 52 Maximum Alert Level . | . . . Low Security (%) 100 | 100 100 100 Level 1 . | . . . Level 2 . | . . . Level 3 . | . . . Level 4 . | . . . Level 5 . | . . . High Security . | . . . Max Security . | . . . Squads Dispatched . | . . . Investigation . | . . . Extermination . | . . . Reinforcement . | . . . Assault . | . . . Garrison . | . . . Intercept . | . . . Searches Triggered . | . . . Construction Impeded . | . . . Haulers Reinforced . | . . . Active Scanning Responses . | . . . Cargo Convoy Interrupts . | . . . Stealth | -11 -10 -10 --------- Run | Yrd Mat Min Distress Signals 1 | . 1 . Communications Jammed . | . . . Distress Signals . | . . . Times Spotted 27 | . 11 16 Peak Tracking Total 9 | . 4 9 Tactical Retreats . | . . . Traps | -11 -10 -10 ------- Run | Yrd Mat Min Traps Triggered 2 | . 2 . Indirectly . | . . . Trap Hack Attempts . | . . . Triggered . | . . . Disarmed . | . . . Reprogrammed . | . . . Reused . | . . . Traps Extracted . | . . . Installed . | . . . Triggered . | . . . Machines | -11 -10 -10 ---------- Run | Yrd Mat Min Machines Disabled . | . . . Max in Single Turn . | . . . Machines Repaired . | . . . Machines Dismantled . | . . . Machines Sabotaged . | . . . Overloaded Fab Kills . | . . . Hacking | -11 -10 -10 --------- Run | Yrd Mat Min Machines Accessed 4 | . 4 . Terminals 3 | . 3 . Fabricators . | . . . Repair Stations 1 | . 1 . Recycling Units . | . . . Scanalyzers . | . . . Garrison Access . | . . . Total Hacks 14 | . 14 . Successful 12 | . 12 . Failed 2 | . 2 . Catastrophic . | . . . Database Lockouts . | . . . Manual 1 | . 1 . Terminals 4 | . 4 . Fabricators . | . . . Repair Stations 10 | . 10 . Recycling Units . | . . . Scanalyzers . | . . . Garrison Access . | . . . Terminal Hacks 3 | . 3 . Prototype ID Bank 1 | . 1 . Locate Traps 1 | . 1 . Hauler Manifests 1 | . 1 . Fabricator Hacks . | . . . Repair Station Hacks 9 | . 9 . Scan Component 5 | . 5 . Repair 4 | . 4 . Recycling Unit Hacks . | . . . Scanalyzer . | . . . Garrison Access Hacks . | . . . Unauthorized Hacks . | . . . Terminals . | . . . Fabricators . | . . . Repair Stations . | . . . Recycling Units . | . . . Scanalyzers . | . . . Garrison Access . | . . . Data Cores Recovered . | . . . Used . | . . . Hacking Detections 1 | . 1 . Full Trace Events . | . . . Feedback Events . | . . . Feedback Blocked . | . . . Robot Schematics Acquired . | . . . Robots Built . | . . . Authchips . | . . . Time . | . . . Total Robot Build Rating . | . . . Part Schematics Acquired . | . . . Parts Built . | . . . Authchips . | . . . Time . | . . . Total Part Build Rating . | . . . Parts Repaired 4 | . 4 . Time 104 | . 104 . Parts Recycled . | . . . Recycled Matter . | . . . Retrieved Matter . | . . . Retrieved Components . | . . . Parts Scanalyzed . | . . . Part Schematics Acquired . | . . . Parts Damaged . | . . . Bothacking | -11 -10 -10 ------------ Run | Yrd Mat Min Used RIF Installer . | . . . Robots Hacked . | . . . Non-combat . | . . . Combat . | . . . Robot Hacks Applied . | . . . Relay Couplers Released . | . . . Fabnet Peak Effective % . | . . . Robots Rewired . | . . . Allies Hacked . | . . . Hacks Repelled . | . . . Allies | -11 -10 -10 -------- Run | Yrd Mat Min Total Allies . | . . . Largest Group . | . . . Highest-Rated Group . | . . . Highest-Rated Ally . | . . . Total Orders . | . . . Ally Attacks . | . . . Total Damage . | . . . Kills . | . . . Allies Corrupted . | . . . Allies Melted . | . . . Intel | -11 -10 -10 ------- Run | Yrd Mat Min Robot Analysis Total . | . . . Derelict Logs Recovered . | . . . Drone Launches . | . . . Drone Recoveries . | . . . Exploration | -11 -10 -10 ------------- Run | Yrd Mat Min Turns Passed 1607 | 43 1269 295 Spaces Moved 747 | 37 616 94 Core 1 | 1 . . Treads . | . . . Legs 284 | . 197 87 Wheels 462 | 36 419 7 Hover . | . . . Flight . | . . . Fastest Speed 50 | 50 80 110 Average Speed 157 | 79 148 248 Slowest Speed 260 | 80 260 260 Overloaded Moves . | . . . Propulsion Burnouts . | . . . Robots Hopped . | . . . Cave-ins Triggered . | . . . Exploration Rate (%) 42 | 4 93 30 Regions Visited 2 Branch Regions 1 Pre-discovered Areas . | . . . Known Exits Taken . | . . . Unknown Exits Taken 2 | 1 1 . Scrap Searched . | . . . Spaces Dug . | . . . Terrain Destroyed . | . . . Melee . | . . . Projectile . | . . . AOE . | . . . Terrain Rammed . | . . . Walls Destroyed . | . . . Machines Disabled . | . . . Actions | -11 -10 -10 --------- Run | Yrd Mat Min Total 1071 | 47 903 121 Wait 230 | . 229 1 Move 745 | 36 615 94 Hop . | . . . Pick Up 13 | 4 9 . Fast Attach 8 | 5 3 . Attach 8 | 1 3 4 Detach 3 | . 3 . Swap 2 | 1 1 . Drop 2 | . 1 1 Fire 60 | . 39 21 Melee . | . . . Ram . | . . . Kick . | . . . Crush . | . . . Escape Stasis . | . . . Rewire . | . . . Trap . | . . . Miscellaneous . | . . . Route ------- -11/Scrapyard -10/Materials (discovered 4 exits: [*Mat x2] / [*Min x2]) -10/Mines History --------- Turn | Location | Event 30 | -11/Scrapyard | Discovered new exit (range 16) 44 | -11/Scrapyard | Entered Materials 73 | -10/Materials | Discovered new exit (range 6) 141 | -10/Materials | Discovered new exit (range 16) 288 | -10/Materials | Discovered new exit (range 13) 301 | -10/Materials | Build established: Mutant 450 | -10/Materials | Discovered new exit (range 3) 588 | -10/Materials | Repaired Assault Rifle 614 | -10/Materials | Repaired Lgt. Ion Engine 640 | -10/Materials | Repaired Wheel 666 | -10/Materials | Repaired Wheel 1313 | -10/Materials | Entered Mines 1537 | -10/Mines | Assembled infested the area 1586 | -10/Mines | Core integrity fell below 50% 1596 | -10/Mines | Core integrity fell below 20% 1608 | -10/Mines | Destroyed by as-40210 with Assembled Blade Last Messages --------------- 01589_ Targeting Computer destroyed. 01589_ System corrupted by crushing effect (+1). 01589_ as-05688 destroyed. 01589_ as-97149 destroyed. 01589_ as-01061 destroyed. 01589_ as-06803 destroyed. 01590_ Overheating: Energy bleed (-15). 01590_ Destroyed Asb. Hover Unit. 01590_ as-82876 destroyed. 01592_ Lgt. Assault Rifle destroyed. 01592_ System corrupted by crushing effect (+1). 01593_ Destroyed Asb. Hover Unit. 01594_ as-09571 destroyed. 01595_ Overheating: Sml. Laser damaged (-13). 01595_ The unstable cave ceiling collapses. 01595_ Knocked back. 01596_ Dropped Aluminum Leg. 01602_ as-64196 destroyed. 01606_ The unstable cave ceiling collapses. 01606_ Wheel destroyed. Map ----- +----------------------------------------------------+ | | | | | | | | | | | | | | | | | | | | | | | | | | | | | | | ???????????????????????????????????? | | ???????????????????????????????????? | | ???????????????????????####????????? | | ###########???????????## ##???????? | | #??????????## #####???? | | #??????????# ##??? | | ######## #?????????## #??? | | ???????# #?????????#; #??? | | ???????# #???#######; #??? | | ???????# #??## ##;; #???? | | ???????# #?## #; a@ #????? | | ???????# ### ###????? | | ???????# ##??????? | | #??????# ;#???????? | | #??????###### a ;##???????? | | ??????????# ###????????? | | #?????????## ###??????????? | | ?????????? ##????????????? | | ????????# ###?????????????? | | ??????? # #???????????????? | | ??????#### #???????????????? | | ?????????# # #???????????????? | | ?????????## #???????????????? | | ??????????### ####???????????????? | | ????????????# #???????????????????? | | ????????????# #???????????????????? | | ????????????# ????????????????????? | | ????????????# ????????????????????? | | ????????????? ????????????????????? | | ???????????????????????????????????? | | ???????????????????????????????????? | | ???????????????????????????????????? | | ???????????????????????????????????? | | ???????????????????????????????????? | | ???????????????????????????????????? | +----------------------------------------------------+ Best States ------------- Heat Dissipation 25 Energy Generation 10 Energy Capacity 250 Matter Stores 300 Matter Capacity 300 Sight Range 16 Robot Scan Range 14 Terrain Scan Density 10 Resistance: KI 20 Resistance: TH 20 Resistance: EX 20 Resistance: EM 20 Resistance: I 20 Resistance: S 20 Resistance: P 20 Evasion (%) 44 Offensive Hacking 10 Item Schematics ----------------- None Robot Schematics ------------------ None Fabricated ------------ Nothing Alien Tech Used ----------------- None Achievements -------------- None Challenges ------------ None Game ------ Seed FlakDecoySlayer Manual? 0 Play Time 00:11:06 Cumulative 617.0 hours Start 2025.01.09 @ 00:00:35 End 2025.01.09 @ 20:52:17 Sessions 3 Manual Loads 0 Difficulty Adventurer Special Mode None Game No. 117 Rogue 63 Adventurer 54 Explorer 0 Win Type - Total 26 Types 6/3/1/8/1/1/1/3/2 Lore% 74 Gallery% 89 Achievement% 82 Wizard Run 0 Options --------- Layout 0 ASCII 0 Keyboard 0 Movement Numpad Keybinds 0 Fullscreen 2 Font 18/X11 Map View 76x50 Zoom Use 0% Tactical HUD 1 Map Filters NONE Filters NONE Steam 1 RUN: dccc35ef-1581-4a10-9e7c-cec0f7c478f9